{"text_format":"3","workbook":"xlsx","n_sheets":1,"sheets":["Sheet1"],"not_rendered":{"defined_names":2},"read":"whole","date_system":"1900"}

{"sheet":"Sheet1","index":0,"n_rows":61,"n_cols":5,"rows_kept":61,"merged":[[0,0,0,6]]}
["2005年广州市花都区幼儿园开设托班名单"]
["序号","幼儿园名称","地址","托班班数（个）","托位数（个）"]
[1,"广州市花都区花东镇天湖峰境幼儿园","广州市花都区花东镇天湖峰境小区峰境街1号",1,{"$f":"D3*20","v":20}]
[2,"广州市花都区京师幼学幼儿园有限公司","广州市花都区商业大道188号",2,40]
[3,"广州市花都区保利水晶幼儿园（凯德园区）","广州市花都区凯德五街15号之五",5,100]
[4,"广州市花都区世纪之星幼儿园","广州市花都区新华街美雅直街田美村经济社坑唇楼A栋",1,20]
[5,"广州市花都区童梦艺想幼儿园","广州市花都区狮岭镇前益东路53号",2,40]
[6,"广州市花都区赤坭镇佳蕾幼儿园","广州市花都区赤坭镇彩虹街南二巷8号",1,20]
[7,"广州市花都区培恩幼儿园","广州市花都区新华街天贵路65号",2,40]
[8,"广州市花都区花东镇蓓蕾幼儿园","广州市花都区花东镇朝富二街1号之一",1,20]
[9,"广州市花都区博悦幼儿园","广州市花都区花城街大华三路6号",1,20]
[10,"广州市花都区益群幼儿园","广州市花都区狮岭镇振益街2号",2,40]
[11,"广州市花都区炭步镇见兴华乐幼儿园","广州市花都区炭步镇华岭村南边路5号之一",1,20]
[12,"广州市花都区卓符蓓蕾幼儿园","广州市花都区凤华路11号",2,40]
[13,"广州市花都区赤坭镇中心幼儿园（一园区）","广州市花都区赤坭镇赤坭大道49号",2,40]
[14,"广州市花都区职业技术学校附属养正幼儿园","广州市花都区荔红南路阅河一街9号",3,60]
[15,"广州市花都区德育幼儿园有限公司","广州市花都区新华街天贵路69号",5,100]
[16,"广州市花都区卓符幼儿园有限公司","广州市花都区新华街迎宾大道131号",3,60]
[17,"广州市花都区松园幼儿园","广州市花都区茶园里中路西六巷19号",2,40]
[18,"广州市花都区华盛幼儿园","广州市花都区花城街杨屋路68号",2,40]
[19,"广州市花都区花东镇逸泉云翠幼儿园","广州市花都区花东镇花都大道东逸泉韵翠小区韵翠一街6号",1,20]
[20,"广州市花都区五洲幼儿园","广州市花都区天贵路50号之十四",1,20]
[21,"广州市花都区花东镇小太阳幼儿园","广州市花都区花东镇南溪新村二街6号",1,20]
[22,"广州市花都区东骏翰飞幼儿园有限公司","广州市花都区迎宾大道81号后座",3,60]
[23,"广州市花都区幼林培英幼儿园附属幼儿园","广州市花都区建设北路217号之一",4,80]
[24,"广州市花都区宾湖幼儿园","广州市花都区新华街商业大道130号",1,20]
[25,"广州市花都区快乐时光幼儿园","广州市花都区狮岭镇金狮大道东17号之一号",2,40]
[26,"广州市花都区花侨幼儿园","广州市花都区花东镇花侨侨业西路8号",1,20]
[27,"广州市花都区爱朗幼儿园","广州市花都区新雅街清布村联乡路9号",2,40]
[28,"广州市花都区官溪幼儿园","广州市花都区秀全街红棉大道北8号",3,60]
[29,"广州市花都区汇星幼儿园","广州市花都区新华街工业大道34号",1,20]
[30,"广州市花都区耀东幼儿园","广州市花都区镜湖大道18号",3,60]
[31,"广州市花都区柏朗幼儿园有限公司","广州市花都区商业大道208号3号楼",3,60]
[32,"广州市花都区花山镇东方幼儿园","广州市花都区花山镇菊花石大道90号",1,20]
[33,"广州市花都区启智幼儿园","广州市花都区新雅街花和路282号",1,{"$f":"D35*20","v":20}]
[34,"广州市花都区红红幼儿园","广州市花都区荔枝基路25号之二",2,40]
[35,"广州市花都区立德幼儿园有限公司","广州市花都区新华街云山大道23号（车辆厂生活区）",2,40]
[36,"广州市花都区职业技术学校附属颐成幼儿园","广州市花都区炭步镇颐和盛世五街2号、广州市花都区梯面镇知云东街81号",4,80]
[37,"广州市花都区职业技术学校附属博博熊湾区幼儿园","广州市花都区泰福大街56号",2,40]
[38,"广州市花都区职业技术学校附属碧湖幼儿园","广州市花都区假日半岛映翠苑三十三街18号",2,40]
[39,"广州市花都区花山镇康乐幼儿园","广州市花都区花山镇秀林二街8号",1,20]
[40,"广州市花都区乐儿幼儿园","广州市花都区新华街新街大道布心路4一1号",2,40]
[41,"广州市花都区乐心幼儿园有限公司","广州市花都区凤凰北路34号之六十八",1,20]
[42,"广州市花都区职业技术学校附属耀德幼儿园","广州市花都区华翠路16号之一",2,40]
[43,"广州市花都区黄广幼儿园有限公司","广州市花都区秀全街红棉大道北自编32号",2,40]
[44,"广州市花都区风神幼儿园","广州市花都区风神大道18号",4,80]
[45,"广州市花都区狮岭镇阳光雅思幼儿园","广州市花都区狮岭镇振兴北路37号",1,20]
[46,"广州市花都区花东镇中心幼儿园（花侨园区）","广州市花都区花东镇侨辉街4号",1,20]
[47,"广州市花都区狮岭镇中心村幼儿园","广州市花都区狮岭镇培正北路171号",2,40]
[48,"广州市花都区曙光幼儿园","广州市花都区新华街云山大道62号",1,20]
[49,"广州市花都区恒星幼儿园有限公司","广州市花都区狮岭镇振兴路56号",2,40]
[50,"广州市花都区职业技术学校附属蓓蕾幼儿园（雍华庭园区）","广州市花都区凤凰北路32号之一百九十",1,20]
[51,"广州市花都区卓越幼儿园有限公司","广州市花都区新华街工业大道18号之一",1,20]
[52,"广州市花都区新华街公益幼儿园","广州市花都区新华街茶园里北路西一巷2号",1,20]
[53,"广州市花都区万紫千红幼儿园","广州市花都区花都大道东398号之十一",1,20]
[54,"广州市花都区优培幼儿园","广州市花都区花城街紫薇路12号",2,40]
[55,"广州市花都区赤坭镇华贵幼儿园","广州市花都区赤坭镇华贵路8号",1,20]
[56,"广州市花都区凯斯富雅幼儿园有限公司","广州市花都区秀全街紫阳路1号之二",2,40]
[57,"广州市花都区花城街中心幼儿园（凯旋园区）","广州市花都区花城街三东大道89号之三",1,20]
[58,"广州市花都区翰林星蕾幼儿园","广州市花都区新华街大华二路2号之二",2,40]
[59,"广州市花都区华万幼儿园有限公司","广州市花都区芙蓉大道60号",1,20]